bitfinex/quotes_ETHUSD_20260121
["timestamp","ask_amount","ask_price","bid_price","bid_amount"]
[1768988883428,0.001,2970.0,2969.7,9.79454236]
[1768988883625,0.001,2970.0,2969.7,0.002]
[1768988883826,10.55767928,2970.0,2969.7,0.002]
[1768988889449,10.55767928,2970.0,2969.5,0.002]
[1768988891444,10.55767928,2969.8,2969.5,0.002]
[1768988895356,11.61354721,2969.8,2969.5,0.002]
[1768988903282,11.61354721,2969.8,2969.7,0.002]
[1768988903483,11.61354721,2969.8,2969.2,9.79454236]
[1768988904381,11.61354721,2969.8,2969.2,0.002]
[1768988913407,0.001,2969.8,2969.2,9.83594376]
[1768988913695,0.001,2969.8,2969.2,9.80226466]
[1768988914399,0.001,2969.8,2969.4,9.80026466]
[1768988914762,0.001,2969.8,2969.4,9.80226466]
[1768988915702,0.001,2970.0,2969.5,9.80026466]
[1768988916166,10.40960621,2970.0,2969.5,9.80026466]
[1768988917690,10.40960621,2970.0,2969.4,0.002]
[1768988918266,10.40860621,2969.7,2969.1,0.0036]
[1768988919966,10.40860621,2969.7,2969.1,9.80386466]
[1768988922067,11.44946683,2969.7,2969.1,0.0036]
[1768988923400,0.0008,2969.4,2969.0,9.80026466]
[1768988926884,0.0008,2969.4,2969.3,0.002]
[1768988927083,0.0008,2969.4,2969.2,9.79919675]
[1768988930312,3.37317669,2969.2,2969.0,9.80119675]
[1768988934819,13.3004093,2969.2,2969.0,0.002]
[1768988936222,9.92723261,2969.2,2969.0,0.002]
[1768988937228,9.92723261,2969.2,2968.9,0.002]
[1768988938021,0.0008,2969.4,2968.9,0.002]
[1768988938222,9.92723261,2969.3,2968.9,0.002]
[1768988939221,9.92723261,2969.3,2969.1,0.002]
[1768988939520,9.92723261,2969.3,2968.9,0.002]
[1768988940819,10.92003587,2969.3,2968.3,9.80119675]
[1768988941322,10.92003587,2969.3,2968.3,3.3709276]
[1768988941622,9.85408419,2969.1,2968.4,9.90983391]
[1768988943622,9.85408419,2969.1,2968.3,0.002]
[1768988943813,9.85408419,2968.9,2968.3,0.002]
[1768988945522,9.85408419,2968.5,2968.0,0.002]
[1768988948399,9.85408419,2968.5,2968.0,9.91183391]
[1768988950697,9.85408419,2968.5,2968.2,0.002]
[1768988950898,9.85408419,2968.5,2968.0,9.91183391]
[1768988953959,0.001,2968.7,2968.0,9.91183391]
[1768988954103,0.001,2968.7,2968.2,9.90983391]
[1768988954427,0.001,2968.7,2968.2,9.8813281]
[1768988956798,9.8838768,2968.7,2968.2,9.8813281]
[1768988957003,9.8838768,2968.7,2968.1,10.72603375]
[1768988957204,9.8838768,2968.7,2968.1,9.73465036]
[1768988963438,9.8838768,2968.7,2968.3,0.002]
[1768988964377,0.001,2968.7,2968.3,9.73665036]
[1768988965327,9.8838768,2968.7,2968.3,9.73665036]
[1768988966364,9.8838768,2968.7,2968.3,0.002]
[1768988966875,10.87226448,2968.7,2968.3,0.002]
[1768988967030,10.87226448,2968.7,2968.0,0.002]
[1768988967930,9.8828768,2968.5,2968.0,0.002]
[1768988968640,9.8828768,2967.9,2967.0,9.73465036]
[1768988969857,9.8828768,2967.9,2967.1,9.73465036]
[1768988970931,9.8828768,2967.9,2967.2,9.73465036]
[1768988973035,9.8828768,2967.9,2967.0,9.73465036]
[1768988975434,9.8828768,2967.9,2967.4,0.002]
[1768988975635,9.8828768,2967.7,2967.4,0.002]
[1768988980063,9.8828768,2967.7,2967.1,0.002]
[1768988980739,9.8828768,2967.7,2967.1,9.73665036]
[1768988981542,9.8828768,2967.7,2967.1,0.002]
[1768988981947,9.8828768,2967.7,2967.1,9.73665036]
[1768988983772,9.8836768,2968.1,2967.1,10.7105154]
[1768988984067,9.8836768,2968.1,2967.3,9.73465036]
[1768988984275,9.8836768,2968.1,2967.5,9.73465036]
[1768988984672,9.8836768,2968.1,2967.6,9.73465036]
[1768988987760,0.0008,2968.1,2967.6,9.73465036]
[1768988988056,0.0008,2968.1,2967.8,10.39741155]
[1768988988573,0.0008,2968.1,2967.6,10.39741155]
[1768988988773,10.33392266,2968.1,2967.6,10.39741155]
[1768988990641,10.33392266,2968.1,2967.2,0.002]
[1768988990846,10.33392266,2968.1,2967.2,10.39941155]
[1768988991061,11.36731493,2968.1,2967.2,10.39941155]
[1768988991782,11.36731493,2968.1,2967.2,0.002]
[1768988993091,11.36731493,2968.1,2967.2,10.39941155]
[1768988993777,11.36731493,2968.1,2967.2,0.002]
[1768988993975,1.03419227,2968.1,2967.3,10.39741155]
[1768988994181,10.33392266,2968.1,2967.5,10.39741155]
[1768988996286,10.33392266,2968.1,2967.3,10.39741155]
[1768988999987,10.33392266,2968.1,2967.5,0.002]
[1768989000200,10.33312266,2967.8,2967.5,0.002]
[1768989000356,0.001,2967.9,2967.5,10.39941155]
[1768989000556,0.001,2967.9,2967.5,11.43955271]
[1768989000958,10.33412266,2967.9,2967.5,11.43955271]
[1768989001187,10.33412266,2967.9,2967.5,10.39941155]
[1768989001797,10.33412266,2967.9,2967.5,0.002]
[1768989003196,10.33412266,2967.9,2967.5,9.74168496]
[1768989006902,0.001,2967.9,2967.5,9.74168496]
[1768989009002,0.001,2967.9,2967.7,9.73968496]
[1768989011304,0.001,2967.9,2967.5,9.74168496]
[1768989013108,10.1640278,2967.8,2967.5,0.002]
[1768989014105,10.1640278,2967.8,2967.7,0.002]
[1768989014328,10.1640278,2967.8,2967.5,0.002]
[1768989016209,10.27920816,2967.9,2967.5,10.33147725]
[1768989020012,11.30720898,2967.9,2967.5,0.002]
[1768989022416,10.27920816,2967.9,2967.5,0.002]
[1768989026918,10.27920816,2967.9,2967.7,0.002]
[1768989027120,0.001,2967.7,2967.5,0.002]
[1768989028993,10.27920816,2967.7,2967.5,0.002]
[1768989029391,0.001,2967.7,2967.5,0.002]
[1768989032027,0.001,2967.7,2967.5,10.33147725]
[1768989032189,0.001,2967.9,2967.7,10.32947725]
[1768989032889,0.001,2967.9,2967.6,10.32947725]
[1768989033303,0.001,2967.9,2967.5,10.33147725]
[1768989033593,10.27920816,2967.9,2967.5,10.33147725]
[1768989033806,10.27920816,2967.9,2967.5,0.002]
[1768989035423,10.27920816,2967.9,2967.5,10.33147725]
[1768989038203,10.27920816,2967.9,2967.5,0.002]
[1768989039834,10.27920816,2967.9,2967.7,0.002]
[1768989040017,10.27920816,2967.9,2967.5,0.002]
[1768989040018,11.30720898,2967.9,2967.5,0.002]
[1768989040334,0.001,2967.7,2967.5,0.002]
[1768989046930,10.43250989,2967.7,2967.5,0.002]
[1768989059811,10.43150989,2967.5,2966.8,0.002]
[1768989060011,10.43150989,2967.5,2966.8,9.99760126]
[1768989060211,10.43150989,2967.3,2966.8,9.99760126]
[1768989063612,10.43150989,2967.3,2967.0,0.002]
[1768989064816,0.001,2967.7,2967.0,0.002]
[1768989064817,10.14937331,2967.7,2967.0,10.30431013]
[1768989065818,10.14937331,2967.7,2967.0,0.002]
[1768989066048,10.14837331,2967.5,2967.0,0.002]
[1768989066516,10.14837331,2967.5,2966.8,0.002]
[1768989073959,10.14837331,2967.5,2966.8,10.30431013]
[1768989076233,10.14837331,2967.5,2967.0,0.002]
[1768989076444,10.14937331,2967.5,2967.0,0.002]
[1768989076658,10.69671058,2967.4,2967.0,10.075754]
[1768989076932,9.58127952,2967.5,2967.0,0.002]
[1768989082966,9.58127952,2967.5,2966.8,10.075754]
[1768989088138,9.58127952,2967.5,2967.0,0.002]
[1768989088344,0.001,2967.3,2967.0,0.002]
[1768989089674,9.58127952,2967.3,2967.0,0.002]
[1768989090846,9.58127952,2967.3,2966.8,0.002]
[1768989091245,10.08971514,2967.3,2966.8,0.002]
[1768989092755,10.08971514,2967.3,2966.8,10.075754]
[1768989094577,10.08971514,2967.3,2966.8,0.002]
[1768989098189,10.08971514,2967.3,2966.8,0.002]
[1768989099685,10.08971514,2967.3,2967.0,0.002]
[1768989099982,0.001,2967.1,2966.8,0.002]
[1768989100200,0.001,2967.1,2966.8,10.075754]
[1768989100365,9.58127952,2967.1,2966.8,0.002]
[1768989105693,0.001,2967.1,2966.8,10.33907172]
[1768989107061,9.76511226,2967.1,2966.8,0.002]
[1768989112164,0.001,2967.1,2967.0,0.002]
[1768989112366,0.001,2967.3,2966.9,10.33707172]
[1768989115680,9.76511226,2967.3,2966.9,10.33707172]
[1768989117288,0.001,2967.5,2967.0,10.33707172]
[1768989117619,0.001,2967.5,2967.0,11.37097889]
[1768989118791,0.001,2967.5,2967.1,10.33707172]
[1768989118989,0.001,2967.9,2967.1,10.33707172]
[1768989119617,0.001,2967.9,2967.1,10.89407172]
[1768989120505,9.76511226,2968.5,2967.3,10.33707172]
[1768989120715,9.76511226,2968.5,2967.1,0.557]
[1768989120716,0.001,2968.5,2967.6,10.33707172]
[1768989120914,0.001,2968.5,2967.8,10.33707172]
[1768989121690,0.001,2968.5,2967.9,9.87858926]
[1768989121883,0.001,2968.7,2968.5,9.87858926]
[1768989122397,9.65124733,2969.2,2968.2,9.87858926]
[1768989122605,9.65124733,2969.2,2968.1,0.557]
[1768989122606,10.13757514,2969.2,2968.4,9.87858926]
[1768989126311,9.65124733,2969.2,2968.4,9.87858926]
[1768989129591,9.65124733,2969.2,2968.5,9.87858926]
[1768989130524,9.65204733,2969.4,2968.5,9.87858926]
[1768989130726,0.0008,2969.4,2968.5,9.87858926]
[1768989131187,9.65204733,2969.4,2968.5,9.87858926]
[1768989131503,9.65204733,2969.4,2968.7,9.87858926]
[1768989132841,9.65204733,2969.4,2968.3,1.60055893]
[1768989133014,9.65204733,2969.4,2968.3,10.43558926]
[1768989134922,9.65204733,2969.4,2968.3,9.87858926]
[1768989135732,9.65204733,2969.4,2968.5,9.91417273]
[1768989135936,0.001,2969.2,2968.5,9.91417273]
[1768989136331,9.73126599,2969.2,2968.5,9.91417273]
[1768989136538,9.73126599,2969.2,2968.7,9.91217273]
[1768989137529,9.73126599,2969.2,2968.5,0.002]
[1768989139243,9.73026599,2969.1,2968.5,0.002]
[1768989139539,9.73026599,2968.8,2967.5,9.91217273]
[1768989139703,9.73026599,2968.6,2967.5,11.2960852]
[1768989140408,9.73026599,2968.6,2967.6,9.91217273]
[1768989142206,9.73026599,2968.6,2967.6,13.28185585]
[1768989142552,9.73026599,2968.6,2967.7,9.91217273]
[1768989144136,9.73026599,2968.6,2967.8,9.91217273]
[1768989144350,9.73026599,2968.6,2967.8,11.57732032]
[1768989146810,9.73026599,2968.6,2967.8,9.91217273]
[1768989148113,9.73026599,2968.6,2967.8,9.91417273]
[1768989148637,9.73126599,2968.4,2967.8,9.91417273]
[1768989157971,9.73126599,2968.4,2967.8,0.002]
[1768989158884,9.73126599,2968.4,2967.8,9.91417273]
[1768989159441,0.001,2968.4,2967.8,9.91417273]
[1768989159640,0.001,2968.4,2967.8,11.24255117]
[1768989159974,9.73126599,2968.4,2967.8,11.24255117]
[1768989160841,9.73126599,2968.4,2968.0,0.002]
[1768989161470,9.73126599,2968.4,2968.0,9.91417273]
[1768989161672,0.001,2968.4,2968.0,9.91417273]
[1768989161882,0.001,2968.4,2968.0,11.24273714]
[1768989162868,9.73126599,2968.4,2968.0,11.24273714]
[1768989163160,9.73126599,2968.4,2968.0,9.91417273]
[1768989163358,9.73126599,2968.4,2968.0,0.002]
[1768989163750,9.73126599,2968.4,2968.0,9.91417273]
[1768989164075,0.001,2968.4,2968.0,9.91417273]
[1768989164587,9.73126599,2968.4,2968.0,9.91417273]
[1768989169163,9.73126599,2968.4,2968.0,0.002]
[1768989172354,10.70439259,2968.4,2968.0,0.002]
[1768989172781,10.70439259,2968.4,2967.8,0.002]
[1768989174595,9.62766738,2968.2,2967.5,0.002]
[1768989177201,9.62766738,2968.2,2967.1,0.002]
[1768989177398,9.62766738,2968.0,2967.1,0.002]
[1768989180487,9.62766738,2968.0,2967.1,9.87495675]
[1768989183495,9.62766738,2968.0,2967.1,0.002]
[1768989184490,9.62766738,2968.0,2967.3,0.002]
[1768989184693,9.62766738,2968.0,2967.1,0.002]
[1768989184997,10.40767376,2967.8,2967.1,0.002]
[1768989186204,10.40767376,2967.8,2967.0,0.002]
[1768989186403,10.40767376,2967.8,2966.8,0.002]
[1768989187584,10.40767376,2967.8,2966.8,10.12995625]
[1768989196501,10.40767376,2967.8,2967.0,0.002]
[1768989196683,10.36489653,2967.6,2966.9,10.33974113]
[1768989196882,10.36589653,2967.6,2966.9,10.33974113]
[1768989198622,10.36589653,2967.6,2966.8,0.002]
[1768989198914,10.36589653,2967.6,2966.7,10.33974113]
[1768989199122,0.02850379,2966.9,2966.7,10.33974113]
[1768989201819,11.43274035,2966.9,2966.6,0.002]
[1768989202017,10.39340032,2966.9,2966.4,0.002]
[1768989202316,10.39340032,2966.9,2966.3,0.002]
[1768989202928,10.39340032,2966.9,2966.3,10.34174113]
[1768989203118,0.02850379,2966.9,2966.3,10.34174113]
[1768989203323,0.02850379,2966.9,2966.3,11.87613122]
[1768989204012,0.02850379,2966.9,2966.3,10.34174113]
[1768989204209,10.39340032,2966.9,2966.3,10.34174113]
[1768989206914,10.39340032,2966.9,2966.3,0.002]
[1768989207524,10.39340032,2966.9,2966.3,10.34174113]
[1768989208102,0.001,2966.7,2966.3,10.34174113]
[1768989220023,0.001,2966.5,2966.3,10.34174113]
[1768989220314,0.001,2966.7,2966.3,10.34174113]
[1768989224407,10.36489653,2966.6,2965.9,0.0036]
[1768989224613,10.36489653,2966.6,2965.6,0.002]
[1768989224858,10.35989653,2966.1,2965.6,0.002]
[1768989228573,10.35989653,2966.1,2965.2,9.93492707]
[1768989228873,10.12270149,2965.9,2965.2,9.93492707]
[1768989230737,10.12270149,2965.9,2965.0,9.93492707]
[1768989231330,10.12270149,2965.8,2964.8,9.93492707]
[1768989231833,10.12270149,2965.8,2964.5,9.93492707]
[1768989232145,10.12270149,2965.6,2965.1,0.002]
[1768989232347,10.12270149,2965.6,2964.6,9.93492707]
[1768989232543,10.12270149,2965.6,2964.7,9.93492707]
[1768989235047,10.12270149,2965.8,2965.1,9.93492707]
[1768989235269,1.01227015,2965.7,2965.1,9.93492707]
[1768989235583,10.12270149,2965.7,2965.1,9.93492707]
[1768989237484,10.12270149,2965.9,2965.1,9.93492707]
[1768989239958,10.12270149,2965.9,2964.8,9.93492707]
[1768989242089,10.12270149,2965.9,2964.9,9.69273929]
[1768989242294,10.18615172,2966.1,2964.9,9.69273929]
[1768989242505,11.20484689,2966.0,2964.9,9.69273929]
[1768989244094,11.20484689,2966.0,2965.1,9.69273929]
[1768989244294,10.18715172,2965.7,2965.1,9.69273929]
[1768989248258,10.18715172,2965.7,2965.0,0.002]
[1768989252699,10.18715172,2965.7,2965.0,9.69473929]
[1768989252905,10.18615172,2965.5,2965.0,9.69473929]
[1768989253399,10.18615172,2965.5,2965.0,0.002]
[1768989254505,10.18615172,2965.5,2965.0,9.69473929]
[1768989256469,10.18715172,2965.5,2965.0,9.69473929]
[1768989256818,10.18715172,2965.5,2964.8,0.002]
[1768989256819,9.65051731,2965.4,2964.8,0.002]
[1768989256972,10.771104,2965.4,2964.4,9.47091287]
[1768989257168,9.65051731,2964.9,2964.4,9.47091287]
[1768989258584,0.10758365,2965.0,2964.4,9.47091287]
[1768989259273,9.75810096,2965.0,2964.4,9.47091287]
[1768989261690,0.10758365,2965.0,2964.4,9.47091287]
[1768989263974,9.75810096,2965.0,2964.4,9.47091287]
[1768989264513,0.10758365,2965.0,2964.4,9.47091287]
[1768989266279,9.75810096,2965.0,2964.4,9.47091287]
[1768989266500,10.55382756,2965.0,2964.4,9.47091287]
[1768989268107,10.55382756,2965.0,2964.6,0.002]
[1768989268318,0.001,2964.8,2964.6,0.002]
[1768989269812,9.65151731,2964.8,2964.6,0.002]
[1768989270010,9.65151731,2964.8,2964.4,0.002]
[1768989270212,9.65051731,2964.6,2964.0,9.47291287]
[1768989270535,9.65051731,2964.6,2963.7,9.47091287]
[1768989270896,9.65051731,2964.6,2963.6,9.47291287]
[1768989271985,9.65051731,2964.5,2963.6,0.002]
[1768989272203,9.65051731,2964.3,2963.6,0.002]
[1768989272518,9.65051731,2964.3,2963.6,9.47291287]
[1768989276518,11.1166224,2964.4,2963.6,9.47291287]
[1768989276718,9.65051731,2964.4,2963.6,9.47291287]
[1768989279103,9.65051731,2964.4,2963.6,0.002]
[1768989281317,9.65051731,2964.4,2963.8,0.002]
[1768989281522,9.65051731,2964.1,2963.6,0.002]
[1768989282497,10.61566904,2964.1,2963.6,0.002]
[1768989282727,9.65051731,2963.6,2962.5,9.47091287]
[1768989283993,9.65051731,2963.6,2962.4,9.47291287]
[1768989284200,9.65051731,2963.0,2962.4,0.002]
[1768989284420,9.65051731,2962.8,2962.4,0.002]
[1768989284730,0.96505173,2962.9,2962.4,9.47291287]
[1768989284899,5.0105336,2963.4,2962.6,9.47091287]
[1768989284900,9.65051731,2963.4,2962.6,9.47091287]
[1768989290016,9.65051731,2963.4,2962.7,0.03375299]
[1768989290213,9.65051731,2963.4,2962.8,10.236366]
[1768989292426,10.04109929,2963.4,2962.8,10.236366]
[1768989293045,9.84140616,2963.6,2962.8,10.236366]
[1768989293812,9.84140616,2963.6,2962.5,13.61189219]
[1768989294012,9.84140616,2963.6,2963.0,0.002]
[1768989294209,9.84140616,2963.6,2963.0,10.238366]
[1768989295425,9.84140616,2963.6,2963.0,0.002]
[1768989295632,5.02056729,2963.9,2963.0,0.002]
[1768989295633,9.84140616,2963.4,2963.0,0.002]
[1768989295832,9.84140616,2963.4,2962.8,0.002]
[1768989296223,9.84140616,2963.4,2962.4,10.238366]
[1768989296540,9.84140616,2963.4,2962.4,0.002]
[1768989297040,9.84140616,2963.4,2962.4,10.238366]
[1768989297242,9.84140616,2963.2,2962.4,10.238366]
[1768989297943,9.84140616,2963.2,2962.4,0.002]
[1768989298349,9.84140616,2962.1,2961.2,0.0204576]
[1768989298536,9.84140616,2962.1,2961.3,10.236366]
[1768989298845,11.38308403,2962.1,2961.3,10.236366]
[1768989299047,11.38308403,2962.1,2961.3,9.90661095]
[1768989299424,11.38308403,2962.1,2960.7,0.0016]
[1768989299425,9.84140616,2961.8,2960.7,0.0016]
[1768989299628,9.84140616,2961.5,2960.7,0.0016]
[1768989300124,9.84140616,2961.5,2960.7,10.237966]
[1768989300325,9.84140616,2961.5,2960.8,11.2601626]
[1768989301131,9.84140616,2961.5,2960.8,1.0237966]
[1768989301336,9.84140616,2961.5,2960.7,10.237966]
[1768989301924,9.84140616,2961.5,2960.8,3.37744434]
[1768989302120,10.29178366,2961.8,2960.9,9.99506343]
[1768989302642,10.29178366,2961.8,2961.0,9.99506343]
[1768989305330,10.29178366,2961.8,2961.0,13.37229803]
[1768989305657,10.29178366,2961.8,2961.0,11.33229323]
[1768989307959,10.29178366,2961.8,2961.2,9.99706343]
[1768989308556,10.29178366,2962.0,2961.2,9.99706343]
[1768989309252,10.29178366,2962.0,2961.2,0.002]
[1768989309829,10.29178366,2962.0,2961.3,9.99506343]
[1768989310029,0.0008,2962.4,2961.3,11.4968265]
[1768989310030,10.29178366,2962.2,2961.3,11.4968265]
[1768989311269,10.29178366,2962.2,2961.2,0.002]
[1768989312860,10.29178366,2962.0,2961.2,0.002]
[1768989313268,10.29178366,2962.1,2961.2,9.99706343]
[1768989313473,0.0008,2962.4,2961.5,9.99506343]
[1768989313474,10.29178366,2962.3,2961.5,9.99506343]
[1768989313774,11.32104203,2962.3,2961.5,9.99506343]
[1768989315981,11.32104203,2962.3,2961.2,6.75595523]
[1768989315982,11.32104203,2962.3,2961.2,0.002]
[1768989316160,10.01941313,2962.1,2961.2,0.002]
[1768989316476,10.01941313,2961.8,2961.0,0.002]
[1768989316777,10.01941313,2961.7,2960.7,0.0016]
[1768989316972,10.01941313,2961.5,2960.7,0.0016]
[1768989320450,10.01941313,2961.5,2960.9,0.002]
[1768989321292,10.01941313,2961.5,2960.9,9.77294503]
[1768989321492,0.001,2961.6,2960.9,9.77294503]
[1768989321698,0.001,2961.6,2961.1,9.77094503]
[1768989322975,10.01941313,2962.1,2961.2,9.80471512]
[1768989323174,10.01941313,2962.1,2961.2,9.77094503]
[1768989323881,0.0008,2962.4,2961.2,9.77094503]
[1768989324188,0.0008,2962.4,2961.4,9.77094503]
[1768989324403,10.02021313,2962.4,2961.6,9.77094503]
[1768989328489,0.0008,2962.4,2961.7,9.77094503]
[1768989331085,0.0008,2962.7,2961.8,9.77094503]
[1768989332300,10.02021313,2962.7,2961.8,9.77094503]
[1768989332464,11.02223444,2962.7,2961.8,9.77094503]
[1768989333572,1.00282131,2962.7,2961.8,9.77094503]
[1768989334303,0.001,2962.5,2961.8,9.77094503]
[1768989334897,0.0008,2962.7,2962.0,9.77094503]
[1768989335071,0.0008,2962.7,2962.2,9.77094503]
[1768989335781,10.01941313,2963.5,2962.3,9.77094503]
[1768989335993,10.01941313,2963.3,2962.3,9.77094503]
[1768989337215,10.01941313,2963.2,2962.3,9.77094503]
[1768989337510,1.00194131,2963.1,2962.3,9.77094503]
[1768989339272,10.01941313,2963.1,2962.3,9.77094503]
[1768989341597,10.01941313,2963.5,2962.3,9.77094503]
[1768989341919,14.247233,2963.6,2962.3,9.77094503]
[1768989342123,10.01941313,2963.3,2962.3,9.77094503]
[1768989342324,10.01941313,2963.1,2962.3,9.77094503]
[1768989346716,10.01941313,2963.1,2962.5,9.88828135]
[1768989346917,0.001,2962.9,2962.5,9.88828135]
[1768989352328,10.39790462,2962.9,2962.5,9.88828135]
[1768989352902,10.39630462,2962.9,2962.5,9.88828135]
[1768989357407,11.43593508,2962.9,2962.5,9.88828135]
[1768989357809,11.43593508,2962.9,2962.4,0.002]
[1768989358408,11.43593508,2962.9,2962.4,9.89028135]
[1768989360338,11.43593508,2962.9,2962.6,0.002]
[1768989361313,10.39690462,2962.8,2962.1,0.0036]
[1768989361513,11.54049813,2962.8,2962.1,0.0036]
[1768989362040,11.54049813,2962.8,2962.1,9.48409186]
[1768989362237,9.41757449,2963.1,2962.1,9.48409186]
[1768989362814,9.41757449,2963.1,2962.3,9.48049186]
[1768989363417,9.41757449,2963.1,2962.1,9.48409186]
[1768989363627,9.41757449,2963.1,2962.1,0.0036]
[1768989364044,5.5761705,2963.2,2962.1,0.0036]
[1768989364045,9.41757449,2962.8,2962.1,0.0036]
[1768989364234,9.41757449,2962.6,2962.1,0.0036]
[1768989366443,9.41757449,2962.5,2961.4,9.48049186]
[1768989366642,9.41757449,2962.5,2961.2,0.002]
[1768989366643,9.41757449,2962.2,2961.2,9.48249186]
[1768989366843,9.41757449,2962.0,2961.2,0.002]
[1768989367645,9.41757449,2961.9,2961.2,0.002]
[1768989367844,9.41757449,2961.7,2961.1,0.002]
[1768989380667,9.41757449,2961.7,2961.1,9.59529123]
[1768989382265,9.41757449,2961.7,2961.1,0.002]
[1768989382467,9.27133366,2961.5,2961.1,0.002]
[1768989382988,9.27133366,2961.3,2960.9,0.002]
[1768989384047,9.27133366,2961.3,2960.7,0.0016]
[1768989384292,9.27133366,2960.9,2960.0,3.37835606]
[1768989384444,0.0398988,2960.0,2959.5,9.59329123]
[1768989384837,5.02216527,2961.0,2959.6,5.02136527]
[1768989384838,9.27133366,2960.9,2959.6,5.02136527]
[1768989385046,9.27133366,2960.9,2959.7,9.59329123]
[1768989385673,9.27133366,2960.9,2959.9,9.59329123]
[1768989386271,0.0008,2961.0,2959.9,14.6146565]
[1768989386571,0.0008,2961.0,2960.2,9.59329123]
[1768989387177,0.0008,2961.0,2960.4,9.59329123]
[1768989390145,9.27213366,2961.0,2960.4,9.59329123]
[1768989391547,9.27213366,2961.0,2960.4,9.59329123]
[1768989394863,9.27213366,2961.0,2960.0,9.59329123]
[1768989395067,9.27133366,2960.8,2959.8,9.59329123]
[1768989395292,9.27133366,2960.8,2958.8,3.37967681]
[1768989395293,9.27133366,2960.6,2959.3,9.59329123]
[1768989395983,9.27133366,2960.3,2958.6,9.59329123]
[1768989396159,9.27133366,2960.0,2958.7,9.62708985]
[1768989396359,9.27133366,2960.0,2958.7,9.59329123]
[1768989397094,9.27133366,2959.8,2958.7,9.59329123]
[1768989397290,9.27133366,2959.6,2959.2,0.002]
[1768989399594,0.92713337,2959.7,2959.2,0.002]
[1768989399768,9.27133366,2959.8,2959.2,9.59529123]
[1768989400394,9.27133366,2959.8,2959.2,0.002]
[1768989402400,9.27133366,2959.8,2959.2,9.59529123]
[1768989404194,9.27133366,2960.0,2959.2,9.59529123]
[1768989404378,0.92713337,2959.9,2959.2,9.59529123]
[1768989404578,9.27133366,2960.0,2959.2,9.59529123]
[1768989404799,9.27133366,2960.3,2959.2,9.59529123]
[1768989405212,0.559,2960.9,2959.2,9.59529123]
[1768989405213,8.889339,2960.5,2959.4,9.59329123]
[1768989405386,9.5628952,2960.4,2959.4,9.59329123]
[1768989409017,9.5628952,2960.4,2959.5,9.59293214]
[1768989409213,9.5628952,2960.2,2959.5,9.59293214]
[1768989412187,9.5628952,2960.2,2959.5,0.002]
[1768989412406,9.5628952,2960.2,2959.3,0.002]
[1768989412594,9.5628952,2960.0,2959.3,0.002]
[1768989412798,9.5628952,2960.0,2959.2,0.002]
[1768989413004,9.5628952,2959.8,2959.2,0.002]
[1768989415118,9.5628952,2959.8,2958.8,9.59093214]
[1768989415432,9.5628952,2959.8,2958.5,9.59093214]
[1768989416224,9.5628952,2959.8,2958.6,9.59093214]
[1768989417321,9.5628952,2959.8,2958.8,9.59093214]
[1768989417522,1.10223129,2959.7,2958.8,9.59093214]
[1768989417730,9.5628952,2959.6,2958.8,9.59093214]
[1768989421055,9.5628952,2959.6,2958.3,0.003]
[1768989421221,9.49360967,2959.2,2958.3,9.97443787]
[1768989421534,9.49360967,2959.2,2958.8,0.002]
[1768989422839,3.4293841,2960.0,2958.8,0.002]
[1768989423004,9.49360967,2959.5,2958.8,9.96914954]
[1768989424513,9.49360967,2959.5,2958.8,0.002]
[1768989424727,9.49360967,2959.3,2958.8,0.002]
[1768989426735,9.49360967,2959.3,2958.3,0.003]
[1768989427133,9.49360967,2959.3,2958.3,9.9557056]
[1768989428253,9.49360967,2958.9,2958.3,0.003]
[1768989430250,9.49360967,2958.9,2958.1,0.002]
[1768989433220,9.49360967,2958.8,2958.0,9.93461489]
[1768989433941,9.49360967,2958.8,2958.3,9.93501489]
[1768989434255,9.49360967,2959.0,2958.3,9.93501489]
[1768989434450,0.94946097,2958.9,2958.3,9.93501489]
[1768989434950,9.49360967,2958.9,2958.3,9.93501489]
[1768989436363,0.001,2959.1,2958.4,9.93007115]
[1768989436574,9.96995406,2959.6,2958.6,9.93007115]
[1768989439853,9.96995406,2959.6,2958.7,9.93007115]
[1768989440024,9.96995406,2959.9,2958.7,9.93007115]
[1768989440228,0.001,2960.0,2958.9,9.93007115]
[1768989440737,0.001,2960.0,2959.2,9.93007115]
[1768989441555,0.001,2960.0,2959.4,9.93007115]
[1768989442262,0.001,2960.0,2959.5,9.93007115]
[1768989443330,0.001,2960.4,2959.5,9.93007115]
[1768989443566,0.001,2960.4,2959.7,9.93007115]
[1768989443749,0.001,2960.4,2959.8,9.93007115]
[1768989444231,9.97075406,2961.0,2959.8,9.93007115]
[1768989444641,0.0008,2961.0,2960.1,9.93007115]
[1768989444965,0.0008,2961.0,2960.3,9.93007115]
[1768989445977,0.0008,2961.0,2960.4,9.93007115]
[1768989446286,0.001,2960.7,2960.4,9.93007115]
[1768989446746,0.001,2960.7,2960.0,9.92977465]
[1768989448701,9.97095406,2960.7,2960.0,9.92977465]
[1768989448865,9.96995406,2960.5,2959.7,9.92374232]
[1768989449184,9.96995406,2960.5,2959.3,13.30291834]
[1768989449334,9.96995406,2960.5,2959.4,13.29986004]
[1768989449537,9.96995406,2960.5,2959.5,3.37888173]
[1768989449756,9.96995406,2960.5,2959.5,9.92082269]
[1768989449956,9.96995406,2960.3,2959.5,9.92082269]
[1768989450739,1.09670495,2960.4,2959.5,9.92082269]
[1768989451375,11.06665901,2960.4,2959.5,9.92082269]
[1768989452159,11.06665901,2960.4,2959.5,13.29975922]
[1768989452759,11.06665901,2960.4,2959.6,9.91222933]
[1768989453049,11.06665901,2960.4,2959.6,11.57925204]
[1768989454179,1.09670495,2960.4,2959.7,9.90942512]
[1768989454876,9.96995406,2960.6,2959.7,9.90942512]
[1768989457155,9.96995406,2960.6,2959.8,9.90122342]
[1768989457751,0.001,2960.4,2959.8,9.90122342]
[1768989459783,9.97095406,2960.4,2959.8,9.90122342]
[1768989463183,0.001,2960.4,2959.8,9.90122342]
[1768989463885,0.001,2960.4,2959.9,9.88289774]
[1768989464455,10.96804947,2960.4,2959.7,9.88036216]
[1768989465980,10.96804947,2960.4,2959.4,9.87558664]
[1768989466184,10.96804947,2960.4,2959.5,9.87558664]
[1768989466804,10.96804947,2960.4,2959.5,13.25450294]
[1768989467602,10.96804947,2960.4,2959.6,9.87085724]
[1768989467810,10.96804947,2960.4,2959.6,10.85794296]